Cogmind - Beta 14 @@@ ROGUE MODE // 2024.09.24 @ 16:39:22 Player: DuckBoy Result: Destroyed by NT-7NO(R) with Subdweller Beam Cannon Performance ------------- Evolutions (0) 0 Regions Visited (2) 400 Robots Destroyed (20) 100 Value Destroyed (496) 496 Prototype IDs (2) 40 Alien Tech Used (0) 0 Bonus (0) 0 TOTAL SCORE: 1036 Bonus ------- None Cogmind --------- Core Integrity 0/250 Matter 267/300 Energy 20/100 System Corruption 0% Temperature Cool (9) Movement Rolling (110) Location -10/Subcaves Parts ------- > --- POWER (1) -------- (None) > --- PROPULSION (2) --- Subdweller Monowheel Subdweller Monowheel > --- UTILITY (2) ------ Large Storage Unit Visual Processing Unit > --- WEAPON (2) ------- Light Assault Rifle > --- INVENTORY (15) --- Wheel Wheel Small Storage Unit Sensor Array Hacking Suite EM Pulse Gun EM Pulse Gun Small Laser Grenade Launcher Scrap Shield Fragment (48) Peak State ------------ > --- POWER ------------ Subdweller Power Source > --- PROPULSION ------- Light Treads Subdweller Monowheel > --- UTILITY ---------- Large Storage Unit Visual Processing Unit > --- WEAPON ----------- Light Assault Rifle Subdweller Machine Gun > --- INVENTORY -------- Ion Engine Wheel Wheel Wheel Subdweller Monowheel Small Storage Unit Sensor Array Hacking Suite EM Pulse Gun EM Pulse Gun EM Pulse Gun Small Laser Subdweller Beam Cannon Grenade Launcher Scrap Shield Fragment [Rating: 13] Favorites ----------- Power Light Ion Engine Engine Light Ion Engine Propulsion Light Treads Treads Light Treads Wheel Subdweller Monowheel Utility Large Storage Unit Storage Large Storage Unit Processor Visual Processing Unit Weapon Light Assault Rifle Energy Gun EM Pulse Gun Energy Cannon Subdweller Beam Cannon Ballistic Gun Light Assault Rifle Launcher Grenade Launcher Build | -11 -10 -10 ------- Run | Yrd Mat Sub Slots Evolved . | . . . Power . | . . . Propulsion . | . . . Utility . | . . . Weapon . | . . . Parts Attached 28 | 6 7 15 Power 5 | 1 . 4 Engine 5 | 1 . 4 Core . | . . . Reactor . | . . . Propulsion 9 | 2 2 5 Treads 3 | . 2 1 Leg . | . . . Wheel 6 | 2 . 4 Hover . | . . . Flight . | . . . Utility 4 | 1 3 . Device . | . . . Storage 3 | 1 2 . Processor 1 | . 1 . Hackware . | . . . Protection . | . . . Artifact . | . . . Weapon 10 | 2 2 6 Energy Gun 1 | . . 1 Energy Cannon 2 | . . 2 Ballistic Gun 6 | 2 1 3 Ballistic Cannon . | . . . Launcher 1 | . 1 . Special Weapon . | . . . Impact Weapon . | . . . Slashing Weapon . | . . . Piercing Weapon . | . . . Special Melee Weapon . | . . . Unidentified Prototypes . | . . . Parts Lost 11 | . 1 10 Power 3 | . . 3 Propulsion 3 | . 1 2 Utility . | . . . Weapon 5 | . . 5 Highest Loss Streak 7 | . 1 7 To Critical Strikes . | . . . Average Slot Usage (%) 94 | . 91 97 Engine 13 | . 14 13 Treads 22 | . 23 20 Wheel 5 | . 3 7 Storage 14 | . 14 14 Processor 9 | . 6 14 Ballistic Gun 26 | . 27 25 Peak Build Rating 13 | 6 9 13 Average Rating 9 | 4 7 11 On Entrance 5 | . 6 9 Naked Turns . | . . . Heaviest Build 37 | 10 26 37 Greatest Support 40 | 20 40 40 Greatest Overweight (x) 3 | 3 1 2 Average Overweight (x) . | . . . Largest Inventory Capacity 15 | 8 15 15 Average Capacity 13 | 7 12 15 Most Carried 15 | 5 15 15 Average Carried 12 | 2 11 14 Final Capacity 15 | 8 15 15 Final Carried 15 | 5 15 10 Class Distribution -------------------- 100% | Mutant Dominant Class ---------------- Mutant | -10/Materials Mutant | -10/Subcaves Resources | -11 -10 -10 ----------- Run | Yrd Mat Sub Matter Collected 627 | 210 277 140 Remotely . | . . . Salvage Created 593 | . 413 180 Parts 49 | . 40 9 Haulers Intercepted 1 | . 1 . Recyclers Shooed . | . . . Parts Field Recycled . | . . . Retrieved Matter . | . . . Parts Self-Destructed . | . . . Prevented . | . . . Kills | -11 -10 -10 ------- Run | Yrd Mat Sub Combat Hostiles Destroyed 13 | . 9 4 Guns 9 | . 6 3 Cannons 1 | . . 1 AOE 3 | . 3 . Classes Destroyed 8 | . 6 2 Builder 2 | . 2 . Hauler 1 | . 1 . Operator 1 | . 1 . Watcher 3 | . 3 . Swarmer 3 | . 3 . Grunt 6 | . 6 . Artisan 1 | . . 1 Subdweller 4 | . . 4 Best Kill Streak 6 | . 6 1 Combat Bots Only 4 | . 4 1 Max Kills in Single Turn 3 | . 3 1 Gunslinging . | . . . Exploded 2 | . 2 . Melee . | . . . Uniques/NPCs Destroyed . | . . . Combat | -11 -10 -10 -------- Run | Yrd Mat Sub Hostile Shots Fired 94 | . 51 43 Missed 28 | . 17 11 Damage Taken 1498 | . 422 1076 Core 255 | . 42 213 Absorbed by Shields . | . . . Core Remaining (%) 100 | 100 . . Volleys Fired 75 | . 49 26 Largest 2 | . 2 2 Hottest 120 | . 40 120 Shots Fired 143 | . 96 47 Gun 133 | . 94 39 Cannon 8 | . . 8 Launcher 2 | . 2 . Special . | . . . Kinetic 131 | . 94 37 Thermal 8 | . . 8 Explosive 2 | . 2 . Electromagnetic 2 | . . 2 Robot Hit Streak 17 | . 7 17 Robot Miss Streak 3 | . 3 1 Penetration Max . | . . . Secondary Targets 1 | . 1 . Max Gunslinging Chain 1 | . 1 . Shots Hit Robots 101 | . 62 39 Core Hits 40 | . 31 9 Critical Kills . | . . . Critical Parts Destroyed . | . . . Critical Strikes . | . . . Melee Attacks . | . . . Impact . | . . . Slashing . | . . . Piercing . | . . . Sneak Attacks . | . . . Combat Hostiles . | . . . Follow-up Attacks . | . . . Damage Inflicted 1398 | . 796 602 Guns 953 | . 550 403 Cannons 199 | . . 199 Explosions 246 | . 246 . Melee . | . . . Ramming . | . . . Kinetic 941 | . 550 391 Thermal 199 | . . 199 Explosive 246 | . 246 . Electromagnetic 12 | . . 12 Impact . | . . . Slashing . | . . . Piercing . | . . . Highest Corruption . | . . . Average Corruption . | . . . Corruption Purged . | . . . Corruption Blocked . | . . . Overload Shots . | . . . Overflow Damage . | . . . Projectiles . | . . . Explosions . | . . . Melee . | . . . Knockbacks . | . . . Impact . | . . . Kinetic . | . . . Secondary . | . . . Self-Inflicted Damage 21 | . 21 . Shots 1 | . 1 . Rammed . | . . . Targets Rammed . | . . . Kicked . | . . . Crushed . | . . . Highest Temperature 295 | . 27 295 Average Temperature 59 | . 9 158 Received Heat Transfer 644 | . 219 425 Effects 1 | . . 1 Energy Bleed 1 | . . 1 Siege Activations . | . . . Robots Corrupted . | . . . Combat Hostiles . | . . . Parts Fried . | . . . Impact Corruptions . | . . . Robots Melted . | . . . Combat Hostiles . | . . . Parts Melted 1 | . . 1 Heat Transferred 259 | . . 259 Parts Sabotaged . | . . . Parts Stolen . | . . . Parts Stripped . | . . . Power Chain Reactions . | . . . Alert | -11 -10 -10 ------- Run | Yrd Mat Sub Peak Influence 379 | . 379 . Initial . | . . . Average 153 | . 161 . Maximum Alert Level 1 | . 1 . Low Security (%) 80 | 100 79 . Level 1 19 | . 20 . Level 2 . | . . . Level 3 . | . . . Level 4 . | . . . Level 5 . | . . . High Security . | . . . Max Security . | . . . Squads Dispatched 1 | . 1 . Investigation 1 | . 1 . Extermination . | . . . Reinforcement . | . . . Assault . | . . . Garrison . | . . . Intercept . | . . . Searches Triggered . | . . . Construction Impeded . | . . . Haulers Reinforced . | . . . Active Scanning Responses . | . . . Cargo Convoy Interrupts . | . . . Stealth | -11 -10 -10 --------- Run | Yrd Mat Sub Distress Signals 1 | . 1 . Communications Jammed . | . . . Distress Signals . | . . . Times Spotted 21 | . 16 5 Peak Tracking Total 3 | . 3 2 Tactical Retreats 2 | . 2 . Traps | -11 -10 -10 ------- Run | Yrd Mat Sub Traps Triggered 3 | . . 3 Indirectly . | . . . Trap Hack Attempts . | . . . Triggered . | . . . Disarmed . | . . . Reprogrammed . | . . . Reused . | . . . Traps Extracted . | . . . Installed . | . . . Triggered . | . . . Machines | -11 -10 -10 ---------- Run | Yrd Mat Sub Machines Disabled . | . . . Max in Single Turn . | . . . Machines Repaired . | . . . Machines Dismantled . | . . . Machines Sabotaged . | . . . Overloaded Fab Kills . | . . . Hacking | -11 -10 -10 --------- Run | Yrd Mat Sub Machines Accessed 8 | . 8 . Terminals 6 | . 6 . Fabricators . | . . . Repair Stations . | . . . Recycling Units 2 | . 2 . Scanalyzers . | . . . Garrison Access . | . . . Total Hacks 20 | . 20 . Successful 13 | . 13 . Failed 7 | . 7 . Catastrophic . | . . . Database Lockouts . | . . . Manual 12 | . 12 . Terminals 17 | . 17 . Fabricators . | . . . Repair Stations . | . . . Recycling Units 3 | . 3 . Scanalyzers . | . . . Garrison Access . | . . . Terminal Hacks 5 | . 5 . Prototype ID Bank 1 | . 1 . Level Access Points 1 | . 1 . Branch Access Points 1 | . 1 . Locate Traps 1 | . 1 . Hauler Manifests 1 | . 1 . Fabricator Hacks . | . . . Repair Station Hacks . | . . . Recycling Unit Hacks . | . . . Scanalyzer . | . . . Garrison Access Hacks . | . . . Unauthorized Hacks 8 | . 8 . Terminals 5 | . 5 . Botnet 4 | . 4 . Operators 1 | . 1 . Fabricators . | . . . Repair Stations . | . . . Recycling Units 3 | . 3 . Monitor 1 | . 1 . Reject 1 | . 1 . Tunnel 1 | . 1 . Scanalyzers . | . . . Garrison Access . | . . . Data Cores Recovered 1 | . 1 . Used . | . . . Hacking Detections 5 | . 5 . Full Trace Events . | . . . Feedback Events . | . . . Feedback Blocked . | . . . Robot Schematics Acquired . | . . . Robots Built . | . . . Authchips . | . . . Time . | . . . Total Robot Build Rating . | . . . Part Schematics Acquired . | . . . Parts Built . | . . . Authchips . | . . . Time . | . . . Total Part Build Rating . | . . . Parts Repaired . | . . . Time . | . . . Parts Recycled . | . . . Recycled Matter . | . . . Retrieved Matter . | . . . Retrieved Components . | . . . Parts Scanalyzed . | . . . Part Schematics Acquired . | . . . Parts Damaged . | . . . Bothacking | -11 -10 -10 ------------ Run | Yrd Mat Sub Used RIF Installer . | . . . Robots Hacked . | . . . Non-combat . | . . . Combat . | . . . Robot Hacks Applied . | . . . Relay Couplers Released . | . . . Fabnet Peak Effective % . | . . . Robots Rewired . | . . . Allies Hacked . | . . . Hacks Repelled . | . . . Allies | -11 -10 -10 -------- Run | Yrd Mat Sub Total Allies . | . . . Largest Group . | . . . Highest-Rated Group . | . . . Highest-Rated Ally . | . . . Total Orders . | . . . Ally Attacks . | . . . Total Damage . | . . . Kills . | . . . Allies Corrupted . | . . . Allies Melted . | . . . Intel | -11 -10 -10 ------- Run | Yrd Mat Sub Robot Analysis Total . | . . . Derelict Logs Recovered 2 | . . 2 Drone Launches . | . . . Drone Recoveries . | . . . Exploration | -11 -10 -10 ------------- Run | Yrd Mat Sub Turns Passed 2173 | 59 1110 1004 Spaces Moved 1362 | 41 682 639 Core 10 | 10 . . Treads 706 | . 448 258 Legs . | . . . Wheels 646 | 31 234 381 Hover . | . . . Flight . | . . . Fastest Speed 50 | 50 80 110 Average Speed 133 | 92 133 135 Slowest Speed 200 | 200 160 160 Overloaded Moves . | . . . Propulsion Burnouts . | . . . Robots Hopped . | . . . Cave-ins Triggered . | . . . Exploration Rate (%) 46 | 4 88 46 Regions Visited 2 Branch Regions 1 Pre-discovered Areas 1 | . 1 . Known Exits Taken . | . . . Unknown Exits Taken 2 | 1 1 . Scrap Searched 2 | . . 2 Spaces Dug . | . . . Terrain Destroyed 18 | . 18 . Melee . | . . . Projectile . | . . . AOE 18 | . 18 . Terrain Rammed . | . . . Walls Destroyed . | . . . Machines Disabled . | . . . Actions | -11 -10 -10 --------- Run | Yrd Mat Sub Total 1588 | 58 801 729 Wait 96 | 7 51 38 Move 1360 | 40 681 639 Hop . | . . . Pick Up 21 | 5 11 5 Fast Attach 11 | 6 2 3 Attach 8 | . 1 7 Detach . | . . . Swap 9 | . 4 5 Drop 8 | . 2 6 Fire 75 | . 49 26 Melee . | . . . Ram . | . . . Kick . | . . . Crush . | . . . Escape Stasis . | . . . Rewire . | . . . Trap . | . . . Miscellaneous . | . . . Route ------- -11/Scrapyard -10/Materials (discovered 6 exits: *Mat x3 / *Min x2 / [*Sub]) -10/Subcaves (discovered 1 exit: [*Mat]) History --------- Turn | Location | Event 24 | -11/Scrapyard | Discovered new exit (range 16) 60 | -11/Scrapyard | Entered Materials 161 | -10/Materials | Discovered new exit (range 12) 223 | -10/Materials | Discovered new exit (range 13) 307 | -10/Materials | Discovered new exit (range 15) 338 | -10/Materials | Build established: Mutant 581 | -10/Materials | Discovered new exit (range 9) 796 | -10/Materials | Identified exit to Mines 796 | -10/Materials | Identified exit to Materials 1156 | -10/Materials | Discovered new exit (range 8) 1170 | -10/Materials | Entered Subcaves 1221 | -10/Subcaves | Learned 2 Materials zone layouts 1230 | -10/Subcaves | Ambushed by angry Subdweller bent on revenge 1376 | -10/Subcaves | Learned 2 Materials zone layouts 1774 | -10/Subcaves | Discovered new exit (range 8) 1837 | -10/Subcaves | Core integrity fell below 50% 2136 | -10/Subcaves | Ambushed by Subdweller buried in earth 2168 | -10/Subcaves | Core integrity fell below 20% 2174 | -10/Subcaves | Destroyed by NT-7NO(R) with Subdweller Beam Cannon Last Messages --------------- 02121_ LJ-I0D(R) destroyed. 02124_ Acquired 10 matter. 02126_ Acquired Sub. Monowheel. 02128_ Subatomizers dissect the Disposable Heat Sink. 02130_ Dropped Wheel. 02130_ Acquired Sub. Beam Cannon. 02136_ Lgt. Treads destroyed. 02137_ NT-7NO(R): "NOSTUCKSUB!" 02138_ Sub. Beam Cannon destroyed. 02140_ Subatomizers dissect the Disposable Heat Sink. 02142_ Critical hit (Meltdown: +290). 02144_ Ion Engine destroyed. 02144_ Sub. Machine Gun destroyed. 02147_ Overheating: Energy bleed (-18). 02151_ Subatomizers dissect the Disposable Heat Sink, destroying it. 02151_ NT-7NO(R) affixes Scrap Shield Fragment to Scrap Shield. 02163_ EM Pulse Gun destroyed. 02167_ Sub. Beam Cannon destroyed. 02168_ Sub. Monowheel destroyed. 02174_ 1A-IRK(R) destroyed. Map ----- +----------------------------------------------------+ | ????????????????????????????? ??????????????????? | | ????????????????????????????? ??????????????????? | | ?????????????????????????????#%??????????????????? | | ????????????????????????????? ?????????????????? | | ?????????????????????????????# ?????????????????? | | ????????????????????????????## ?????????????????? | | ????????????????????????????# ?????????????????? | | ????????????????????????????## ?????????????????? | | ????????????????????????????# #????????????????? | | ????????????????????????????# ####????????????? | | ?????????????????????????????# ############## | | ?????????????????????????????# ## # # # ## | | ??????????????????????????????# | | ???????????????????????????????# % % | | ?????????????????????????????#### # # # # % | | ????????????###?######?####### ## ########## | | ????????????# #;; ## ; ##????????## | | ????????????# ; ; ####????????## | | ?????????????# ;; ;; ## ###????##?# | | ?????? ??????# ; ; ##??? ##### | | ?????# ### ;; R #### "#?# | | ????????# = # ## ## %#?## | | ????????# #### #??#" | | ?????# #??## ##### | | ????# ##???# " # | | ?????# " ; @%= #????# "# | | ?????##" ## ## "" ####; # #;;##????##"" % %# | | ??????????#???# """#???### ####??????# " % ## | | ??????????????##"""??????# #????????## " ####? | | ???????????????###???????# #????????# ####? | | ???????????????????#####?# #????????## ## | | ???????? ??###???## ### % #??######?# # | | ??????? ##""#### ### #### # ### " | | ??????" """""##" ## % " ## | | ??????" """" """ # ####? | | ?????? ###"" # # #""# ####???? | | ????????????##"" ### ###########??????? | | ?????????????### #?##### #### ##????????????????? | | ???????????????###?????####??###?????????????????? | | ?????????????????????????????????????????????????? | | ?????????????????????????????????????????????????? | | ?????????????????????????????????????????????????? | | ?????????????????????????????????????????????????? | | ?????????????????????????????????????????????????? | | ?????????????????????????????????????????????????? | | ?????????????????????????????????????????????????? | | ?????????????????????????????????????????????????? | | ?????????????????????????????????????????????????? | | ?????????????????????????????????????????????????? | | ?????????????????????????????????????????????????? | +----------------------------------------------------+ Best States ------------- Heat Dissipation 25 Energy Generation 15 Energy Capacity 250 Matter Stores 300 Matter Capacity 300 Sight Range 18 Terrain Scan Density 10 Evasion (%) 44 Recoil Reduction 2 Item Schematics ----------------- None Robot Schematics ------------------ None Fabricated ------------ Nothing Alien Tech Used ----------------- None Achievements -------------- None Challenges ------------ None Game ------ Seed BlastRocketBeam Manual? 0 Play Time 00:18:28 Cumulative 442.5 hours Start 2024.09.24 @ 16:23:35 End 2024.09.24 @ 16:39:22 Sessions 1 Manual Loads 0 Difficulty Rogue Special Mode None Game No. 276 Rogue 273 Adventurer 3 Explorer 0 Win Type - Total 7 Types 6/0/1/0/0/0/0/0/0 Lore% 44 Gallery% 73 Achievement% 67 Wizard Run 0 Options --------- Layout 0 ASCII 0 Keyboard 0 Movement Numpad Keybinds 0 Fullscreen 1 Font 18/SmallcapsGlow Map View 76x50 Zoom Use 0% Tactical HUD 1 Map Filters NONE Filters NONE Steam 1 RUN: 15fd26db-1daf-459b-bbd2-e3b33c0185cc